fUST/lending_fUST_20240203
["ID","MTS","AMOUNT","RATE_DAILY","PERIOD"]
[313205472,1706945439916,-500.0,0.00027397,2]
[313205473,1706945439925,-500.0,0.00027397,2]
[313205474,1706945439935,-516.26866858,0.00027397,2]
[313205475,1706945439944,-500.0,0.00027397,2]
[313205476,1706945439953,-505.2109281,0.00027397,2]
[313205477,1706945439962,-510.4089276,0.00027397,2]
[313205478,1706945439971,-515.31332414,0.00027397,2]
[313205479,1706945439981,-450.81935059,0.00027397,2]
[313205480,1706945439991,-155.0,0.00027397,2]
[313205481,1706945440000,-505.97331896,0.00027397,2]
[313205482,1706945440010,-303.39,0.00027397,2]
[313205483,1706945440019,-516.29053679,0.00027397,2]
[313205484,1706945440029,-502.09785927,0.00027397,2]
[313205485,1706945440038,-500.0,0.00027397,2]
[313205486,1706945440048,-914.63,0.00027397,2]
[313205487,1706945440058,-500.0,0.00027397,2]
[313205488,1706945440067,-500.0,0.00027397,2]
[313205489,1706945440077,-500.0,0.00027397,2]
[313205490,1706945440086,-1301.96,0.00027397,2]
[313205491,1706945440096,-500.0,0.00027397,2]
[313205492,1706945440106,-500.0,0.00027397,2]
[313205493,1706945440115,-500.0,0.00027397,2]
[313205494,1706945440125,-500.0,0.00027397,2]
[313205495,1706945440135,-500.0,0.00027397,2]
[313205496,1706945440144,-500.0,0.00027397,2]
[313205497,1706945440154,-500.0,0.00027397,2]
[313205498,1706945440163,-809.15,0.00027397,2]
[313205499,1706945440173,-500.0,0.00027397,2]
[313205500,1706945440183,-506.31384961,0.00027397,2]
[313205501,1706945440192,-500.0,0.00027397,2]
[313205502,1706945440202,-500.0,0.00027397,2]
[313205503,1706945440212,-557.65,0.00027397,2]
[313205504,1706945440221,-500.0,0.00027397,2]
[313205505,1706945440231,-500.0,0.00027397,2]
[313205506,1706945440240,-532.19411453,0.00027397,2]
[313205507,1706945440249,-526.25,0.00027397,2]
[313205508,1706945440259,-536.87163581,0.00027397,2]
[313205509,1706945440269,-516.70612086,0.00027397,2]
[313205510,1706945440278,-500.0,0.00027397,2]
[313205511,1706945440288,-2729.6,0.00027397,2]
[313205512,1706945440298,-500.0,0.00027397,2]
[313205513,1706945440307,-11360.36341794,0.00027497,7]
[313205514,1706945440317,-151.0,0.00027505,2]
[313205515,1706945440326,-500.0,0.0002767,2]
[313205516,1706945440336,-267.81469663,0.0002767,2]
[313205517,1706945440346,-500.0,0.0002767,2]
[313205518,1706945440356,-500.0,0.0002767,2]
[313205519,1706945440366,-500.0,0.0002767,2]
[313205520,1706945440375,-153.90709371,0.0002767,2]
[313205521,1706945440385,-446.38681975,0.0002767,2]
[313205522,1706945440446,-53.61318025,0.0002767,2]
[313205523,1706945440456,-500.0,0.0002767,2]
[313205524,1706945440466,-500.0,0.0002767,2]
[313205525,1706945440475,-632.13931193,0.0002767,2]
[313205526,1706945440485,-238.10643615,0.0002767,2]
[313205531,1706945442065,-624.15640998,0.00027397,2]
[313205532,1706945442075,-876.52,0.00027397,2]
[313205533,1706945442085,-261.89356385,0.0002767,2]
[313205534,1706945442094,-500.0,0.0002767,2]
[313205536,1706945442103,-500.0,0.0002767,2]
[313205538,1706945442112,-500.0,0.0002767,2]
[313205539,1706945442121,-500.0,0.0002767,2]
[313205540,1706945442131,-500.0,0.0002767,2]
[313205541,1706945442140,-500.0,0.0002767,2]
[313205542,1706945442150,-500.0,0.0002767,2]
[313205543,1706945442159,-302.84997675,0.0002767,2]
[313205604,1706946633798,-717.4770118,0.00024309,2]
[313205605,1706946633809,-589.57572061,0.0002431,2]
[313205606,1706946633818,-326.17134224,0.00024311,2]
[313205607,1706946633828,-4035.82532571,0.00024311,2]
[313205608,1706946633838,-1269.47921693,0.00024312,2]
[313205609,1706946633848,-155.0294556,0.00024312,2]
[313205610,1706946633857,-1858.30574077,0.00024313,2]
[313205611,1706946633866,-220.24197511,0.00024349,2]
[313205612,1706946633875,-3314.88451487,0.00024759,2]
[313205613,1706946633885,-5099.98512045,0.00024767,2]
[313205614,1706946633894,-958.07434279,0.00024767,2]
[313205615,1706946633902,-2153.3203125,0.00024989,2]
[313205616,1706946633912,-181.02956964,0.00025,3]
[313205617,1706946633920,-24900.0,0.00025082,2]
[313205618,1706946633930,-168.205256,0.00025089,2]
[313205619,1706946633938,-785.89218262,0.00025397,2]
[313205620,1706946633947,-200.0,0.00026762,15]
[313205621,1706946633956,-153.0,0.00027078,2]
[313205622,1706946633966,-500.0,0.00027397,2]
[313205623,1706946633975,-500.0,0.00027397,2]
[313205624,1706946633985,-515.99079095,0.00027397,2]
[313205625,1706946633994,-501.37259724,0.00027397,2]
[313205626,1706946634003,-506.75800662,0.00027397,2]
[313205627,1706946634013,-500.0,0.00027397,2]
[313205628,1706946634023,-455.91042242,0.00027397,2]
[313205629,1706946634032,-500.0,0.00027397,2]
[313205630,1706946634041,-278.60824485,0.00027397,2]
[313205631,1706946634050,-2153.3203125,0.00027592,3]
[313205632,1706946634059,-608.06294456,0.0002767,2]
[313205636,1706946639536,-157.3401731,0.0002767,2]
[313205637,1706946639545,-280.97120171,0.0002767,2]
[313205638,1706946639554,-500.42866339,0.00027671,2]
[313205639,1706946639564,-356.79278901,0.00027671,2]
[313205640,1706946639573,-3000.0,0.000277,4]
[313205641,1706946639582,-71.36092914,0.00027717,2]
[313205781,1706947378017,267.4232945,0.00019732,2]
[313205782,1706947379953,848.1990064,0.00019732,2]
[313205783,1706947394468,10313.97339256,0.00019732,2]
[313205784,1706947394809,155.02170304,0.00019732,2]
[313205785,1706947399836,155.02170304,0.00019732,2]
[313205786,1706947402398,1651.31078755,0.00019732,2]
[313205787,1706947407283,155.02170304,0.00019732,2]
[313205788,1706947408809,155.02170304,0.00019732,2]
[313205789,1706947409578,1574.73260775,0.00019732,2]
[313205790,1706947412001,234.9472934,0.00019732,2]
[313205791,1706947412476,6944.06086229,0.00019732,2]
[313205792,1706947412502,3369.91253027,0.00019732,2]
[313205793,1706947414393,1651.31078755,0.00019732,2]
[313205794,1706947414753,1111.76367262,0.00019732,2]
[313205795,1706947415342,1012.61183762,0.00019732,2]
[313205796,1706947417829,155.02170304,0.00019732,2]
[313205797,1706947421270,165.83929447,0.00019732,2]
[313205798,1706947424822,343.79673943,0.00019732,2]
[313205799,1706947426136,622.02033283,0.00019732,2]
[313205800,1706947426808,229.90849843,0.00019732,2]
[313205801,1706947429578,1312.27717313,0.00019732,2]
[313205802,1706947429994,234.9472934,0.00019732,2]
[313205803,1706947430573,10313.97339256,0.00019732,2]
[313205804,1706947431026,155.02170304,0.00019732,2]
[313205805,1706947432754,1111.76367262,0.00019732,2]
[313205806,1706947434729,24900.0,0.00019673,2]
[313205807,1706947435346,1012.61183762,0.00019732,2]
[313205808,1706947436411,1651.31078755,0.00019732,2]
[313205809,1706947436657,343.79673943,0.00019732,2]
[313205810,1706947437845,155.02170304,0.00019732,2]
[313205811,1706947442147,622.02033283,0.00019732,2]
[313205812,1706947442256,155.02170304,0.00019732,2]
[313205813,1706947446478,10313.97339256,0.00019732,2]
[313205814,1706947447025,172.51441512,0.00019732,2]
[313205815,1706947448036,235.60609502,0.00019673,2]
[313205816,1706947448907,1111.76367262,0.00019673,2]
[313205817,1706947453579,1312.27717313,0.00019673,2]
[313205818,1706947455106,284978.67320332,0.00019673,2]
[313205819,1706947456655,343.79673943,0.00019673,2]
[313205820,1706947458136,622.02033283,0.00019673,2]
[313205821,1706947458239,155.02170304,0.00019673,2]
[313205822,1706947458405,1651.31078755,0.00019673,2]
[313205823,1706947459350,1012.61183762,0.00019673,2]
[313205824,1706947459835,156.30980184,0.00019673,2]
[313205825,1706947464471,10313.97339256,0.00019673,2]
[313205826,1706947469105,114172.60073962,0.00019673,2]
[313205827,1706947469129,72998.0850378,0.00019673,2]
[313205828,1706947470771,1111.76367262,0.00019673,2]
[313205829,1706947474514,188.38715119,0.00019673,2]
[313205830,1706947474653,343.79673943,0.00019673,2]
[313205831,1706947475579,683.6964072,0.00019673,2]
[313205832,1706947476203,622.02033283,0.00019673,2]
[313205833,1706947476255,155.02170304,0.00019673,2]
[313205834,1706947477434,621.01809405,0.00019673,2]
[313205835,1706947482480,4402.87486449,0.00019673,2]
[313205836,1706947486821,1111.76367262,0.00019673,2]
[313205838,1706947492654,343.79673943,0.00019673,2]
[313205839,1706947496149,622.02033283,0.00019673,2]
[313205840,1706947496250,155.02170304,0.00019673,2]
[313205841,1706947497581,683.6964072,0.00019673,2]
[313205842,1706947506763,1206.88823644,0.00019673,2]
[313205844,1706947515583,683.6964072,0.00019673,2]
[313205845,1706947516150,490.12773987,0.00019673,2]
[313205846,1706947516252,202.29332681,0.00019673,2]
[313205847,1706947518653,291.96003463,0.00019673,2]
[313205848,1706947531594,683.6964072,0.00019673,2]
[313205849,1706947547585,683.6964072,0.00019673,2]
[313205851,1706947565586,683.6964072,0.00019673,2]
[313205853,1706947583595,683.6964072,0.00019673,2]
[313205854,1706947599597,683.6964072,0.00019673,2]
[313205855,1706947617597,683.6964072,0.00019673,2]
[313205856,1706947631607,514.02626968,0.00019673,2]
[313205858,1706947732567,2278.0455855,0.00019437,2]
[313205859,1706947763411,3000.0,0.00019432,2]
[313205961,1706947838885,-717.4770118,0.00020272,2]
[313205962,1706947838894,-1858.30574077,0.00020273,2]
[313205963,1706947838903,-155.02170304,0.00020273,2]
[313205964,1706947838912,-155.25397814,0.00020274,2]
[313205965,1706947838922,-7975.5382397,0.00020274,2]
[313205966,1706947838931,-155.02170304,0.00020275,2]
[313205967,1706947838940,-155.02170304,0.00020275,2]
[313205968,1706947838950,-323.73794636,0.00020275,2]
[313205969,1706947838959,-905.4398856,0.00020275,2]
[313205970,1706947838968,-8679.63605222,0.00020275,2]
[313205971,1706947838979,-952.86987331,0.00020275,2]
[313205972,1706947838990,-5678.63075265,0.00020275,2]
[313205973,1706947839001,-340.34257416,0.00020275,2]
[313205974,1706947839011,-1803.33887905,0.00020276,2]
[313205975,1706947839020,-1200.7118793,0.00020276,2]
[313205976,1706947839030,-500.0,0.00020278,2]
[313205977,1706947839039,-639.85213328,0.00020278,2]
[313205978,1706947839048,-1636.08565477,0.00020283,2]
[313205979,1706947839058,-2313.742544,0.00020633,2]
[313205980,1706947839068,-11756.79096378,0.00020729,2]
[313205981,1706947839077,-230.576275,0.00020894,2]
[313205982,1706947839086,-426.16226672,0.00020999,2]
[313205983,1706947839095,-821.38040503,0.00021,2]
[313205984,1706947839104,-380.4719705,0.0002174,2]
[313205985,1706947839113,-619.3782717,0.00021914,2]
[313205986,1706947839122,-200.0,0.0002243,7]
[313205987,1706947839131,-151.0,0.00022713,2]
[313205988,1706947839140,-1636.08565472,0.00023597,2]
[313205989,1706947839149,-280.0,0.00024673,7]
[313205990,1706947839159,-151.0,0.00024699,2]
[313205991,1706947839168,-3552.86535827,0.0002479,2]
[313205992,1706947839177,-625.41288123,0.0002479,2]
[313205993,1706947839186,-854.24225364,0.00025297,2]
[313205994,1706947839195,-200.0,0.00025479,2]
[313205995,1706947839204,-155.02170304,0.0002549,2]
[313205996,1706947839213,-4035.82532571,0.00025491,2]
[313205997,1706947839222,-169.684484,0.00026,2]
[313205998,1706947839231,-7856.1,0.00026301,3]
[313205999,1706947839239,-9427.32,0.00026311,3]
[313206000,1706947839250,-151.0,0.00026321,2]
[313206001,1706947839259,-151.0,0.00026321,2]
[313206002,1706947839269,-151.0,0.00026321,2]
[313206003,1706947839279,-8549.49,0.00026321,3]
[313206004,1706947839289,-151.0,0.00026321,2]
[313206005,1706947839298,-151.0,0.00026331,2]
[313206006,1706947839309,-8182.28032967,0.00026331,4]
[313206007,1706947839319,-151.0,0.00026684,2]
[313206008,1706947839328,-1636.08565472,0.0002691,3]
[313206009,1706947839337,-391.0,0.0002714,15]
[313206010,1706947839454,-4345.80334459,0.00027392,2]
[313206011,1706947839464,-151.0,0.00027392,2]
[313206013,1706947839473,-151.0,0.00027392,2]
[313206015,1706947839483,-151.001804,0.00027392,2]
[313206017,1706947839492,-500.0,0.00027396,2]
[313206019,1706947839501,-500.0,0.00027396,2]
[313206020,1706947839511,-500.0,0.00027396,2]
[313206021,1706947839524,-311.37143275,0.00027396,2]
[313206022,1706947839533,-374.32229926,0.00027396,2]
[313206023,1706947839543,-500.0,0.00027396,2]
[313206024,1706947839553,-515.39070937,0.00027396,2]
[313206025,1706947839562,-500.0,0.00027396,2]
[313206026,1706947839571,-500.0,0.00027396,2]
[313206027,1706947839582,-500.0,0.00027396,2]
[313206028,1706947839593,-500.0,0.00027396,2]
[313206029,1706947839603,-500.0,0.00027396,2]
[313206030,1706947839612,-500.0,0.00027396,2]
[313206031,1706947839622,-218.34543127,0.00027396,2]
[313206032,1706947839631,-500.0,0.00027396,2]
[313206033,1706947839641,-500.0,0.00027396,2]
[313206034,1706947839653,-500.0,0.00027396,2]
[313206035,1706947839663,-500.0,0.00027396,2]
[313206036,1706947839673,-500.0,0.00027396,2]
[313206037,1706947839683,-500.0,0.00027396,2]
[313206038,1706947839693,-500.0,0.00027396,2]
[313206039,1706947839704,-550.0,0.00027396,2]
[313206040,1706947839713,-500.0,0.00027396,2]
[313206041,1706947839722,-500.0,0.00027396,2]
[313206042,1706947839732,-500.0,0.00027396,2]
[313206043,1706947839741,-500.0,0.00027396,2]
[313206044,1706947839750,-500.0,0.00027396,2]
[313206045,1706947839759,-500.0,0.00027396,2]
[313206046,1706947839768,-500.0,0.00027396,2]
[313206047,1706947839777,-500.0,0.00027396,2]
[313206048,1706947839786,-500.0,0.00027396,2]
[313206049,1706947839795,-500.0,0.00027396,2]
[313206050,1706947839805,-500.0,0.00027396,2]
[313206051,1706947839813,-500.0,0.00027396,2]
[313206052,1706947839823,-500.0,0.00027396,2]
[313206053,1706947839833,-500.0,0.00027396,2]
[313206054,1706947839842,-500.0,0.00027396,2]
[313206055,1706947839853,-500.0,0.00027396,2]
[313206056,1706947839862,-500.0,0.00027396,2]
[313206057,1706947839872,-500.0,0.00027396,2]
[313206058,1706947839881,-500.0,0.00027396,2]
[313206059,1706947839893,-500.0,0.00027396,2]
[313206060,1706947839903,-500.0,0.00027396,2]
[313206061,1706947839913,-500.0,0.00027396,2]
[313206062,1706947839923,-239.07550665,0.00027396,2]
[313206063,1706947839933,-500.0,0.00027396,2]
[313206064,1706947839942,-500.0,0.00027396,2]
[313206065,1706947839951,-500.0,0.00027396,2]
[313206066,1706947839960,-500.0,0.00027397,2]
[313206067,1706947839969,-500.0,0.00027397,2]
[313206068,1706947839979,-500.0,0.00027397,2]
[313206069,1706947839988,-500.0,0.00027397,2]
[313206070,1706947839998,-508.84074128,0.00027397,2]
[313206071,1706947840007,-500.0,0.00027397,2]
[313206072,1706947840016,-500.0,0.00027397,2]
[313206073,1706947840025,-500.0,0.00027397,2]
[313206074,1706947840034,-529.75092706,0.00027397,2]
[313206075,1706947840043,-500.0,0.00027397,2]
[313206076,1706947840052,-500.0,0.00027397,2]
[313206077,1706947840062,-500.0,0.00027397,2]
[313206078,1706947840071,-513.93419891,0.00027397,2]
[313206079,1706947840080,-500.0,0.00027397,2]
[313206080,1706947840089,-500.0,0.00027397,2]
[313206081,1706947840098,-502.51300399,0.00027397,2]
[313206082,1706947840107,-500.0,0.00027397,2]
[313206083,1706947840116,-503.37405009,0.00027397,2]
[313206084,1706947840125,-500.0,0.00027397,2]
[313206085,1706947840134,-569.56675569,0.00027397,2]
[313206086,1706947840143,-500.0,0.00027397,2]
[313206087,1706947840151,-500.0,0.00027397,2]
[313206088,1706947840161,-505.95287227,0.00027397,2]
[313206089,1706947840170,-501.95979755,0.00027397,2]
[313206090,1706947840179,-500.0,0.00027397,2]
[313206091,1706947840188,-491.06629373,0.00027397,2]
[313206092,1706947840198,-502.0299749,0.00027397,2]
[313206093,1706947840207,-501.56367019,0.00027397,2]
[313206094,1706947840216,-500.0,0.00027397,2]
[313206095,1706947840226,-258.58735297,0.00027397,2]
[313206096,1706947840235,-500.0,0.00027397,2]
[313206097,1706947840244,-240.43038265,0.00027397,2]
[313206098,1706947840253,-500.0,0.00027397,2]
[313206099,1706947840262,-374.82154736,0.00027397,2]
[313206100,1706947840272,-645.36468903,0.00027397,2]
[313206101,1706947840281,-500.0,0.00027397,2]
[313206102,1706947840289,-503.8622474,0.00027397,2]
[313206103,1706947840299,-194.57581154,0.00027397,2]
[313206104,1706947840309,-530.44382497,0.00027397,2]
[313206105,1706947840318,-509.16728415,0.00027397,2]
[313206106,1706947840327,-502.64182765,0.00027397,2]
[313206107,1706947840336,-151.0,0.00027397,2]
[313206109,1706947840345,-500.0,0.00027397,2]
[313206111,1706947840355,-504.4914612,0.00027397,2]
[313206113,1706947840364,-151.0,0.00027397,2]
[313206115,1706947840375,-151.0,0.00027397,2]
[313206117,1706947840384,-151.0,0.00027397,2]
[313206118,1706947840393,-607.72264108,0.00027397,2]
[313206119,1706947840403,-504.25981323,0.00027397,2]
[313206121,1706947840412,-500.0,0.00027397,2]
[313206124,1706947840422,-500.0,0.00027397,2]
[313206125,1706947840433,-500.0,0.00027397,2]
[313206126,1706947840443,-500.0,0.00027397,2]
[313206127,1706947840453,-503.67279272,0.00027397,2]
[313206128,1706947840463,-472.85051951,0.00027397,2]
[313206129,1706947840472,-500.0,0.00027397,2]
[313206130,1706947840482,-500.0,0.00027397,2]
[313206131,1706947840492,-624.15640998,0.00027397,2]
[313206132,1706947840502,-1316.2,0.00027397,2]
[313206133,1706947840513,-302.26519309,0.00027397,2]
[313206134,1706947840525,-500.0,0.00027397,2]
[313206135,1706947840535,-500.0,0.00027397,2]
[313206136,1706947840544,-500.0,0.00027397,2]
[313206137,1706947840555,-500.0,0.00027397,2]
[313206139,1706947840565,-617.54,0.00027397,2]
[313206141,1706947840574,-1884.06,0.00027397,2]
[313206142,1706947840583,-502.82897254,0.00027397,2]
[313206143,1706947840594,-503.35417262,0.00027397,2]
[313206144,1706947840604,-500.0,0.00027397,2]
[313206145,1706947840613,-500.0,0.00027397,2]
[313206146,1706947840623,-500.0,0.00027397,2]
[313206147,1706947840633,-500.0,0.00027397,2]
[313206148,1706947840643,-500.0,0.00027397,2]
[313206149,1706947840654,-578.67227873,0.00027397,2]
[313206150,1706947840666,-151.0,0.00027397,2]
[313206151,1706947840678,-151.0,0.00027397,2]
[313206152,1706947840689,-151.0,0.00027397,2]
[313206153,1706947840698,-151.0,0.00027397,2]
[313206154,1706947840707,-151.0,0.00027397,2]
[313206155,1706947840716,-500.0,0.00027397,2]
[313206156,1706947840725,-500.0,0.00027397,2]
[313206157,1706947840735,-500.0,0.00027397,2]
[313206158,1706947840744,-500.0,0.00027397,2]
[313206159,1706947840754,-502.61709919,0.00027397,2]
[313206160,1706947840763,-503.421499,0.00027397,2]
[313206161,1706947840772,-504.4767073,0.00027397,2]
[313206162,1706947840782,-500.0,0.00027397,2]
[313206163,1706947840791,-500.0,0.00027397,2]
[313206164,1706947840800,-500.0,0.00027397,2]
[313206165,1706947840810,-190.19588043,0.00027397,2]
[313206166,1706947840819,-500.0,0.00027397,2]
[313206167,1706947840828,-500.0,0.00027397,2]
[313206168,1706947840837,-1277.61,0.00027397,2]
[313206169,1706947840846,-500.0,0.00027397,2]
[313206170,1706947840856,-319.28701932,0.00027397,2]
[313206171,1706947840865,-500.0,0.00027397,2]
[313206172,1706947840874,-500.0,0.00027397,2]
[313206173,1706947840884,-353.32596457,0.00027397,2]
[313206174,1706947840893,-500.0,0.00027397,2]
[313206175,1706947840902,-504.08404034,0.00027397,2]
[313206176,1706947840911,-500.0,0.00027397,2]
[313206177,1706947840920,-500.0,0.00027397,2]
[313206178,1706947840929,-500.0,0.00027397,2]
[313206179,1706947840939,-500.0,0.00027397,2]
[313206180,1706947840948,-696.2,0.00027397,2]
[313206181,1706947840957,-500.0,0.00027397,2]
[313206182,1706947840966,-500.0,0.00027397,2]
[313206183,1706947840976,-500.0,0.00027397,2]
[313206184,1706947840985,-500.0,0.00027397,2]
[313206185,1706947840994,-500.0,0.00027397,2]
[313206186,1706947841003,-764.96,0.00027397,2]
[313206187,1706947841012,-500.0,0.00027397,2]
[313206188,1706947841021,-3309.01,0.00027397,2]
[313206189,1706947841030,-500.0,0.00027397,2]
[313206190,1706947841039,-500.0,0.00027397,2]
[313206191,1706947841047,-500.0,0.00027397,2]
[313206192,1706947841056,-500.0,0.00027397,2]
[313206193,1706947841067,-500.0,0.00027397,2]
[313206194,1706947841077,-500.0,0.00027397,2]
[313206195,1706947841087,-500.0,0.00027397,2]
[313206196,1706947841098,-474.96707827,0.00027397,2]
[313206197,1706947841107,-200.0,0.00027498,2]
[313206198,1706947841116,-155.35403325,0.00027498,2]
[313206199,1706947841126,-679.86163762,0.00027498,2]
[313206200,1706947841135,-151.0,0.00027499,2]
[313206201,1706947841145,-151.0,0.00027499,2]
[313206202,1706947841154,-151.0,0.00027499,2]
[313206203,1706947841163,-18543.54304821,0.000275,2]
[313206204,1706947841173,-600.0,0.000275,2]
[313206205,1706947841182,-194.057992,0.000275,2]
[313206206,1706947841191,-152.86835164,0.00027578,2]
[313206207,1706947841200,-180.7763201,0.00027669,2]
[313206208,1706947841210,-430.51695446,0.0002767,2]
[313206209,1706947841218,-500.0,0.00027671,2]
[313206210,1706947841227,-500.0,0.00027671,2]
[313206211,1706947841237,-500.0,0.00027671,2]
[313206212,1706947841245,-500.0,0.00027671,2]
[313206213,1706947841255,-504.62288054,0.00027671,2]
[313206214,1706947841264,-500.0,0.00027671,2]
[313206215,1706947841273,-505.61619828,0.00027671,2]
[313206216,1706947841282,-320.28093465,0.00027671,2]
[313206217,1706947841292,-416.71414332,0.00027671,2]
[313206218,1706947841301,-505.88117629,0.00027671,2]
[313206219,1706947841310,-505.47567208,0.00027671,2]
[313206220,1706947841319,-500.0,0.00027671,2]
[313206221,1706947841328,-503.81745858,0.00027671,2]
[313206222,1706947841337,-500.0,0.00027671,2]
[313206223,1706947841347,-525.34101276,0.00027671,2]
[313206224,1706947841356,-500.0,0.00027671,2]
[313206225,1706947841365,-500.0,0.00027671,2]
[313206226,1706947841374,-500.0,0.00027671,2]
[313206227,1706947841383,-500.0,0.00027671,2]
[313206228,1706947841392,-500.0,0.00027671,2]
[313206229,1706947841401,-500.0,0.00027671,2]
[313206230,1706947841410,-500.0,0.00027671,2]
[313206231,1706947841419,-1316.2,0.00027671,2]
[313206232,1706947841428,-500.0,0.00027671,2]
[313206233,1706947841438,-500.0,0.00027671,2]
[313206234,1706947841447,-500.0,0.00027671,2]
[313206235,1706947841456,-617.54,0.00027671,2]
[313206236,1706947841466,-1884.06,0.00027671,2]
[313206237,1706947841475,-500.0,0.00027671,2]
[313206238,1706947841484,-500.0,0.00027671,2]
[313206239,1706947841493,-500.0,0.00027671,2]
[313206240,1706947841502,-500.0,0.00027671,2]
[313206241,1706947841512,-500.0,0.00027671,2]
[313206242,1706947841523,-500.0,0.00027671,2]
[313206243,1706947841533,-504.73072043,0.00027671,2]
[313206244,1706947841544,-500.0,0.00027671,2]
[313206245,1706947841554,-500.0,0.00027671,2]
[313206246,1706947841563,-500.0,0.00027671,2]
[313206247,1706947841573,-500.0,0.00027671,2]
[313206248,1706947841582,-500.0,0.00027671,2]
[313206249,1706947841592,-512.4280412,0.00027671,2]
[313206250,1706947841601,-1277.61,0.00027671,2]
[313206251,1706947841611,-500.0,0.00027671,2]
[313206252,1706947841620,-500.0,0.00027671,2]
[313206253,1706947841630,-500.0,0.00027671,2]
[313206254,1706947841639,-500.0,0.00027671,2]
[313206255,1706947841648,-500.49854135,0.00027671,2]
[313206256,1706947841658,-500.0,0.00027671,2]
[313206257,1706947841667,-696.2,0.00027671,2]
[313206258,1706947841676,-500.0,0.00027671,2]
[313206259,1706947841687,-500.0,0.00027671,2]
[313206260,1706947841696,-500.0,0.00027671,2]
[313206261,1706947841706,-502.36653154,0.00027671,2]
[313206262,1706947841715,-500.0,0.00027671,2]
[313206263,1706947841725,-764.96,0.00027671,2]
[313206264,1706947841736,-500.0,0.00027671,2]
[313206265,1706947841745,-3309.01,0.00027671,2]
[313206266,1706947841754,-500.0,0.00027671,2]
[313206267,1706947841763,-500.0,0.00027671,2]
[313206268,1706947841773,-500.0,0.00027671,2]
[313206269,1706947841783,-500.0,0.00027671,2]
[313206270,1706947841864,-500.0,0.00027671,2]
[313206271,1706947841882,-500.0,0.00027671,2]
[313206272,1706947841893,-153.0,0.00027671,2]
[313206273,1706947841903,-199.6991802,0.00027671,2]
[313206274,1706947841914,-153.0,0.00027671,2]
[313206275,1706947841924,-153.0,0.00027671,2]
[313206276,1706947841933,-199.6991802,0.00027671,2]
[313206277,1706947841942,-153.0,0.00027671,2]
[313206278,1706947841953,-153.0,0.00027671,2]
[313206279,1706947841963,-153.0,0.00027671,2]
[313206280,1706947841973,-199.6991802,0.00027671,2]
[313206281,1706947841982,-306.0,0.00027671,2]
[313206282,1706947841992,-371.2448491,0.00027671,2]
[313206283,1706947842001,-153.0,0.00027671,2]
[313206284,1706947842010,-3000.0,0.000277,4]
[313206285,1706947842019,-454.59894632,0.00027705,2]
[313206286,1706947842028,-500.0,0.00027717,2]
[313206287,1706947842036,-504.48564056,0.00027717,2]
[313206288,1706947842045,-765.40311766,0.00027717,2]
[313206289,1706947842054,-151.0,0.000278,2]
[313206290,1706947842063,-693.32314678,0.00027854,2]
[313206291,1706947842073,-35936.46119855,0.000279,2]
[313206292,1706947842082,-2000.0,0.000279,2]
[313206293,1706947842091,-500.186128,0.000279,2]
[313206294,1706947842100,-437.02503165,0.000279,2]
[313206295,1706947842109,-2000.0,0.0002791,2]
[313206296,1706947842118,-2000.0,0.0002792,2]
[313206297,1706947842127,-2875.864551,0.0002793,2]
[313206298,1706947842136,-432.16430821,0.00027945,2]
[313206299,1706947842145,-500.0,0.00027945,2]